Cogmind - Beta 15 @@@ ROGUE MODE // 2025.07.28 @ 15:55:23 Player: Wulphy Result: Self-destructed Performance ------------- Evolutions (5) 2500 Regions Visited (17) 3400 Robots Destroyed (150) 750 Value Destroyed (6452) 6452 Prototype IDs (19) 380 Alien Tech Used (0) 0 Bonus (1954) 1954 TOTAL SCORE: 15436 Bonus ------- High Alert Combat Kills 195 Follower Combat Kills 1440 Awakened Behemoth Slayer 1000 Network Hubs Disabled 400 Built Enhanced Grunts 300 Friendly Fire -1381 Cogmind --------- Core Integrity 795/1000 Matter 138/300 Energy 170/190 System Corruption 0% Temperature Cool (0) Movement Walking (120) Location -5/Warlord Parts ------- > --- POWER (1) -------- Light Quantum Reactor > --- PROPULSION (4) --- Flexi-carbon Leg Flexi-carbon Leg Enhanced Flexi-carbon Leg Enhanced Flexi-carbon Leg > --- UTILITY (10) ----- High-capacity Storage Unit Seismic Detector (fused) Improved Melee Analysis Suite Advanced Melee Analysis Suite Core Analyzer Experimental Armor Integrity Analyzer Microactuators Microactuators Improved Transmission Jammer Centrium Medium Armor Plating > --- WEAPON (2) ------- Variable Charge Gun Heavy Rocket Launcher > --- INVENTORY (20) --- Micro Fission Core Carbon-fiber Leg Enhanced Biometal Leg Enhanced Biometal Leg Enhanced Biometal Leg Enhanced Biometal Leg Huge Storage Unit Advanced Energy Well (500) Experimental Phase Shifter Experimental Thermal Shield Dynamic Insulation System Improved Trap Extractor (6/6 Dirty Bomb) Hacking Drone Bay (1/1) EMDS Makeshift Hammer Chainsword Chainsword Kinetic Spear CR-A16's Behemoth Slayer Peak State ------------ > --- POWER ------------ Light Quantum Reactor > --- PROPULSION ------- Flexi-carbon Leg Enhanced Flexi-carbon Leg Enhanced Flexi-carbon Leg Enhanced Biometal Leg > --- UTILITY ---------- High-capacity Storage Unit Improved Melee Analysis Suite Advanced Melee Analysis Suite Core Analyzer Improved Transmission Jammer Improved Reaction Control System Improved Medium Armor Plating Centrium Medium Armor Plating Experimental Thermal Shield Improved Shock Absorption System > --- WEAPON ----------- Chainsword Kinetic Spear > --- INVENTORY -------- Light Quantum Reactor Enhanced Biometal Leg Enhanced Biometal Leg Enhanced Biometal Leg Enhanced Biometal Leg Advanced Energy Well Seismic Detector Microactuators Improved Actuator Array Experimental Phase Shifter Dynamic Insulation System Improved Trap Extractor Hacking Drone Bay Variable Charge Gun EMDS Heavy Rocket Launcher Makeshift Hammer Chainsword CR-A16's Behemoth Slayer [Rating: 114] Favorites ----------- Power Cooled Deuterium Engine Engine Cooled Deuterium Engine Power Core Light Fission Core Reactor Light Quantum Reactor Propulsion Armored Treads Treads Armored Treads Leg Flexi-carbon Leg Wheel Wheel Utility Improved Melee Analysis Suite Device Seismic Detector Storage High-capacity Storage Unit Processor Improved Melee Analysis Suite Protection Improved Medium Armor Plating Weapon Phasing Sabre Energy Gun EM Pulse Gun Energy Cannon Heavy Particle Cannon Ballistic Gun Improved Assault Rifle Launcher Improved Grenade Launcher Special Weapon Mining Laser Impact Weapon Heavy Flail Slashing Weapon Phasing Sabre Piercing Weapon Kinetic Spear Build | -11 -10 -9 -8 -7 -7 -7 -7 -6 -6 -6 -6 -6 -6 -5 -5 -5 -5 ------- Run | Yrd Mat Mat Mat Fac Low Low Zio Pro Fac Ext Cet Arc Hub Fac Upp Upp War Slots Evolved 10 | . . 2 2 2 . . . . 2 . . . . 2 . . . Power . | . . . . . . . . . . . . . . . . . . Propulsion 2 | . . 1 1 . . . . . . . . . . . . . . Utility 8 | . . 1 1 2 . . . . 2 . . . . 2 . . . Weapon . | . . . . . . . . . . . . . . . . . . Parts Attached 161 | 7 7 10 14 16 6 2 5 . 13 20 4 4 17 28 2 2 4 Power 16 | 1 1 2 1 3 . . . . . 4 . . 1 3 . . . Engine 10 | 1 1 2 1 2 . . . . . 3 . . . . . . . Core 2 | . . . . 1 . . . . . 1 . . . . . . . Reactor 4 | . . . . . . . . . . . . . 1 3 . . . Propulsion 39 | 2 . 3 4 1 . . 1 . 5 7 1 . 8 4 1 . 2 Treads 10 | 2 . 1 4 1 . . 1 . 1 . . . . . . . . Leg 27 | . . . . . . . . . 4 7 1 . 8 4 1 . 2 Wheel 2 | . . 2 . . . . . . . . . . . . . . . Hover . | . . . . . . . . . . . . . . . . . . Flight . | . . . . . . . . . . . . . . . . . . Utility 74 | 2 3 2 4 9 1 1 1 . 8 7 3 4 7 17 1 2 2 Device 37 | 1 . 2 1 2 1 . 1 . 5 2 1 3 5 11 . 1 1 Storage 7 | 1 2 . 1 . . . . . . . 1 . . 2 . . . Processor 11 | . . . . 4 . . . . . 2 . . . 3 1 . 1 Hackware . | . . . . . . . . . . . . . . . . . . Protection 19 | . 1 . 2 3 . 1 . . 3 3 1 1 2 1 . 1 . Artifact . | . . . . . . . . . . . . . . . . . . Weapon 32 | 2 3 3 5 3 5 1 3 . . 2 . . 1 4 . . . Energy Gun 8 | 1 2 1 1 1 1 . . . . . . . . 1 . . . Energy Cannon 3 | . . . 2 . . . . . . 1 . . . . . . . Ballistic Gun 5 | 1 . 2 2 . . . . . . . . . . . . . . Ballistic Cannon . | . . . . . . . . . . . . . . . . . . Launcher 2 | . . . . . 2 . . . . . . . . . . . . Special Weapon 1 | . 1 . . . . . . . . . . . . . . . . Impact Weapon 4 | . . . . 2 . . 1 . . . . . 1 . . . . Slashing Weapon 7 | . . . . . 2 1 2 . . . . . . 2 . . . Piercing Weapon 2 | . . . . . . . . . . 1 . . . 1 . . . Special Melee Weapon . | . . . . . . . . . . . . . . . . . . Unidentified Prototypes 17 | . . 1 1 2 . . 1 . 1 . 2 . 5 3 . . 1 Corrupted Parts 4 | . . . . . . . . . . . . . 2 . . . 2 System Corruption 30 | . . . . . . . . . . . . . 10 . . . 20 Parts Lost 39 | . 2 1 . 3 . . . . 6 5 . . 14 5 3 . . Power 4 | . . . . 1 . . . . 1 . . . 1 1 . . . Propulsion 12 | . . . . . . . . . 2 2 . . 6 . 2 . . Utility 17 | . . 1 . 1 . . . . 3 3 . . 4 4 1 . . Weapon 6 | . 2 . . 1 . . . . . . . . 3 . . . . Highest Loss Streak 12 | . 2 1 . 3 . . . . 3 2 . . 12 1 1 . . To Critical Strikes . | . . . . . . . . . . . . . . . . . . Average Backups 18 | 2 8 13 19 19 18 18 18 19 18 18 20 20 19 18 18 19 19 Power . | . 1 1 1 1 1 1 1 1 1 1 1 1 1 . . 1 1 Propulsion 5 | 1 3 3 7 7 6 6 5 6 5 7 6 6 5 4 4 5 5 Utility 6 | . 1 2 3 5 6 6 5 7 6 5 6 7 7 7 7 7 7 Weapon 5 | . 2 6 6 4 5 5 6 5 5 5 6 6 5 5 6 6 6 Tool/Special . | . . . . . . . . . . . . . . . . . . Unused Backups 49 | . . 2 3 13 1 . 4 . 4 5 1 2 4 4 . . 6 Power 7 | . . 1 . 1 . . . . . 1 1 . . 2 . . 1 Propulsion 18 | . . . 2 3 . . . . 4 3 . 1 2 . . . 3 Utility 12 | . . . . 5 . . 1 . . . . 1 2 2 . . 1 Weapon 12 | . . 1 1 4 1 . 3 . . 1 . . . . . . 1 Tool/Special . | . . . . . . . . . . . . . . . . . . Average Slot Usage (%) 98 | . 100 87 98 99 100 99 99 100 95 98 99 99 99 98 97 100 100 Engine 4 | . 14 11 9 4 7 7 7 7 6 3 . . . . . . . Reactor 1 | . . . . . . . . . . . . . 1 5 5 5 5 Treads 15 | . 28 22 34 30 30 30 30 30 13 . . . . . . . . Leg 11 | . . . . . . . . . 12 26 26 26 25 23 22 23 23 Device 13 | . 6 14 10 8 6 6 7 7 10 9 11 14 11 24 26 27 23 Storage 6 | . 14 11 9 7 7 7 7 7 6 6 6 6 6 5 5 5 5 Processor 19 | . . . . 19 23 23 23 23 20 21 26 26 24 18 17 17 17 Protection 8 | . 7 . 15 8 7 7 6 7 11 13 7 3 8 7 5 6 10 Impact Weapon 1 | . . . . 12 1 . 1 7 . . . . . 1 . . . Slashing Weapon 7 | . . . . . 12 8 13 7 12 12 13 13 11 5 5 5 4 Piercing Weapon 1 | . . . . . . . . . . . . . . 3 4 4 4 Peak Build Rating 114 | 7 8 15 32 50 52 52 56 51 78 74 75 75 92 114 113 105 104 Average Rating 66 | 5 7 11 29 43 48 48 52 51 66 69 71 72 73 99 105 102 99 On Entrance 54 | . 7 7 14 32 47 49 49 51 51 63 69 72 73 85 111 105 101 Naked Turns . | . . . . . . . . . . . . . . . . . . Heaviest Build 89 | 14 30 35 75 77 75 69 67 66 83 81 67 70 78 87 89 80 87 Greatest Support 106 | 40 40 40 80 80 80 80 80 80 88 80 70 70 96 106 106 101 101 Greatest Overweight (x) 3 | . . 3 3 . . . . . 1 1 . . 1 . . . . Average Overweight (x) . | . . . . . . . . . . . . . . . . . . Largest Inventory Capacity 20 | 8 15 15 20 20 20 20 20 20 20 20 20 20 20 20 20 20 20 Average Capacity 19 | 7 14 15 19 20 20 20 20 20 20 20 20 20 20 20 20 20 20 Most Carried 20 | 6 11 15 20 20 20 20 20 20 20 20 20 20 20 20 20 20 20 Average Carried 19 | 2 8 13 19 19 19 19 19 20 19 18 20 19 19 19 19 20 20 Final Capacity 20 | 8 15 15 20 20 20 20 20 20 20 20 20 20 20 20 20 20 20 Final Carried 20 | 6 9 15 20 20 20 20 20 20 18 20 20 20 20 20 20 20 20 Class Distribution -------------------- 38% | Scavenger-Gladiator 36% | Gladiator 15% | Mutant 5% | Scavenger-Mutant Dominant Class ---------------- Mutant | -10/Materials Mutant | -9/Materials Mutant | -8/Materials Gladiator | -7/Factory Gladiator | -7/Lower Caves Mutant | -7/Lower Caves Gladiator | -7/Zion Gladiator | -6/Proximity Caves Gladiator | -6/Factory Scavenger-Gladiator | -6/Extension Commander-Gladiator | -6/Cetus Scavenger-Gladiator | -6/Archives Scavenger-Gladiator | -6/Hub_04(d) Scavenger-Gladiator | -5/Factory Scavenger-Gladiator | -5/Upper Caves Scavenger-Gladiator | -5/Upper Caves Scavenger-Gladiator | -5/Warlord Resources | -11 -10 -9 -8 -7 -7 -7 -7 -6 -6 -6 -6 -6 -6 -5 -5 -5 -5 ----------- Run | Yrd Mat Mat Mat Fac Low Low Zio Pro Fac Ext Cet Arc Hub Fac Upp Upp War Matter Collected 4518 | 227 171 287 442 235 321 132 80 . 320 497 92 97 425 842 299 51 . Remotely . | . . . . . . . . . . . . . . . . . . Salvage Created 6739 | 122 275 210 424 202 353 65 . . 1152 557 90 201 821 1851 393 23 . Parts 342 | 10 14 17 15 11 28 7 . . 50 27 5 17 33 93 12 3 . Haulers Intercepted 2 | . . . . 1 . . . . . . . . . 1 . . . Recyclers Shooed 1 | 1 . . . . . . . . . . . . . . . . . Parts Field Recycled . | . . . . . . . . . . . . . . . . . . Retrieved Matter . | . . . . . . . . . . . . . . . . . . Parts Self-Destructed 42 | . . . . . 18 8 . 1 . . . . . . 12 3 . Prevented 8 | . . . . . . 4 . . . . . . . . 4 . . Kills | -11 -10 -9 -8 -7 -7 -7 -7 -6 -6 -6 -6 -6 -6 -5 -5 -5 -5 ------- Run | Yrd Mat Mat Mat Fac Low Low Zio Pro Fac Ext Cet Arc Hub Fac Upp Upp War Combat Hostiles Destroyed 123 | . 8 6 8 4 14 4 . . 18 8 . . 11 35 7 . . Melee 69 | . . . . 2 4 1 . . 18 7 . . 9 22 6 . . Guns 15 | . 7 6 2 . . . . . . . . . . . . . . Cannons 3 | . . . 3 . . . . . . . . . . . . . . AOE 25 | . 1 . 1 . 10 3 . . . . . . . 10 . . . Classes Destroyed 16 | 2 2 2 . 2 2 . . . 2 2 . . 1 1 . . . Worker 3 | . . . . . . . . . . . . . 1 2 . . . Builder 2 | . . . . . . . . . . . . . . 2 . . . Tunneler 3 | 2 . . . . . . . . . . . . . 1 . . . Hauler 2 | . . . . 1 . . . . . . . . . 1 . . . Recycler 3 | 1 . . . . . . . . . . . . . 2 . . . Minesweeper 2 | . . . . . 1 . . . . . . . . . . 1 . Operator 7 | . . . . . . . . . . 1 . 6 . . . . . Watcher 2 | . . 1 . . . . . . 1 . . . . . . . . Swarmer 33 | . 3 3 . . 10 3 . . . . . . . 14 . . . Grunt 42 | . 5 . 6 . 4 1 . . 9 2 . . 3 8 4 . . Brawler 2 | . . . . . . . . . . 1 . . . 1 . . . Duelist 1 | . . . . . . . . . 1 . . . . . . . . Sentry 18 | . . 3 2 2 . . . . 3 3 . . 2 2 1 . . Hunter 9 | . . . . . . . . . 3 . . . 1 4 1 . . Programmer 13 | . . . . 2 . . . . 2 . . . 2 6 1 . . Behemoth 2 | . . . . . . . . . . 2 . . . . . . . Enhanced Grunt 1 | . . . . . . . . . . . . . 1 . . . . Lightning 3 | . . . . . . . . . . . . . 3 . . . . Savage 1 | . . . . . 1 . . . . . . . . . . . . Best Kill Streak 8 | 3 3 3 2 1 4 3 . . 5 2 . 6 3 8 3 1 . Combat Bots Only 7 | . 3 3 2 1 4 3 . . 5 2 . . 3 7 3 . . Max Kills in Single Turn 3 | 1 1 1 1 1 3 2 . . 1 1 1 1 1 3 1 1 . Gunslinging . | . . . . . . . . . . . . . . . . . . Exploded 3 | . 1 . 1 . 3 2 . . . . . . . 3 . . . Melee 1 | . . . . 1 1 1 . . 1 1 . . 1 1 1 . . Uniques/NPCs Destroyed 1 | . . . . . . . . . . . 1 . . . . . . A7 (-6/Cetus) Combat | -11 -10 -9 -8 -7 -7 -7 -7 -6 -6 -6 -6 -6 -6 -5 -5 -5 -5 -------- Run | Yrd Mat Mat Mat Fac Low Low Zio Pro Fac Ext Cet Arc Hub Fac Upp Upp War Hostile Shots Fired 1122 | . 41 25 47 133 56 92 . . 228 107 . 2 143 188 56 . 4 Missed 387 | . 11 7 12 46 20 35 . . 87 42 . 1 41 75 9 . 1 Hits 735 | . 30 18 35 87 36 57 . . 141 65 . 1 102 113 47 . 3 Melee 9 | . . . . . . 2 . . 7 . . . . . . . . Projectile 726 | . 30 18 35 87 36 55 . . 134 65 . 1 102 113 47 . 3 AOE 1 | . . . . 1 . . . . . . . . . . . . . Critical Strikes 31 | . . 3 1 1 2 . . . 5 2 1 . 13 3 . . . Part Disruptions 1 | . . . . . . . . . . . . . . 1 . . . Actively Blocked 1 | . . . . . . . . . . . . . . 1 . . . Damage Taken 11162 | . 354 250 575 903 717 390 . . 2020 881 15 45 2350 1815 725 . 122 Core 1208 | . 47 27 49 139 105 88 . . 201 77 . . 270 184 21 . . Absorbed by Shields 56 | . . . . . . . . . . 41 15 . . . . . . Redirected to Shielding 131 | . 45 . . 86 . . . . . . . . . . . . . Ignored by Resistances 454 | . . . . . . . . . 83 105 . . 42 134 90 . . Regen/Repaired (Parts) 557 | . . . . . . . . . . . . . . 427 . . 130 Core Remaining (%) 75 | 100 81 93 91 . . . . 52 . . . . 35 . . . . Volleys Fired 164 | 5 28 18 32 3 19 4 . . . . . . 6 6 34 6 3 Largest 2 | 2 2 2 2 2 1 1 . . . . . . 1 1 1 1 2 Hottest 264 | 60 100 100 138 138 50 36 . . . . . . 90 39 75 75 264 Shots Fired 245 | 10 54 33 64 5 19 4 . . . . . . 6 6 34 6 4 Gun 169 | 10 52 30 24 . 10 . . . . . . . . . 34 6 3 Cannon 51 | . . . 40 5 . . . . . . . . 6 . . . . Launcher 20 | . . . . . 9 4 . . . . . . . 6 . . 1 Special 5 | . 2 3 . . . . . . . . . . . . . . . Kinetic 54 | 5 8 17 24 . . . . . . . . . . . . . . Thermal 110 | 5 10 16 27 3 . . . . . . . . 6 . 34 6 3 Explosive 20 | . . . . . 9 4 . . . . . . . 6 . . 1 Electromagnetic 61 | . 36 . 13 2 10 . . . . . . . . . . . . Robot Hit Streak 17 | 2 6 13 17 . 5 8 . . . . . . . 2 . . . Robot Miss Streak 5 | 2 3 2 2 4 5 1 . . . . . . . 3 . . . Penetration Max . | . . . . . . . . . . . . . . . . . . Secondary Targets . | . . . . . . . . . . . . . . . . . . Shots Hit Robots 407 | 4 33 23 46 26 19 6 . . 56 27 3 6 55 80 22 1 . Core Hits 199 | 4 14 10 13 2 26 4 . . 28 8 1 3 21 54 10 1 . Critical Kills . | . . . . . . . . . . . . . . . . . . Critical Parts Destroyed 8 | . . . . 4 1 . . . . . . . . 3 . . . Critical Strikes 29 | . 1 1 . 4 1 . . . 2 5 . . 6 9 . . . Burn 1 | . . 1 . . . . . . . . . . . . . . . Corrupt 1 | . 1 . . . . . . . . . . . . . . . . Smash 8 | . . . . 4 1 . . . . . . . . 3 . . . Sever 16 | . . . . . . . . . 2 5 . . 6 3 . . . Impale 3 | . . . . . . . . . . . . . . 3 . . . Melee Attacks 415 | . . . . 35 16 4 6 . 68 38 3 7 75 129 32 2 . Impact 90 | . . . . 35 4 . 4 . . . . . 14 30 3 . . Slashing 229 | . . . . . 12 4 2 . 68 35 3 7 61 30 7 . . Piercing 96 | . . . . . . . . . . 3 . . . 69 22 2 . Sneak Attacks 23 | . . . . 1 2 . . . 2 2 3 6 2 4 . 1 . Combat Hostiles 2 | . . . . . . . . . 2 . . . . . . . . Follow-up Attacks 44 | . . . . 1 1 . . . 6 3 1 . 13 14 5 . . Damage Inflicted 18007 | 46 443 329 1066 1149 1447 462 . . 2447 1278 196 716 2709 4655 924 69 71 Guns 1164 | 46 415 302 284 . 117 . . . . . . . . . . . . Cannons 718 | . . . 718 . . . . . . . . . . . . . . Explosions 2623 | . 28 . 64 . 948 348 . . . . . . 187 977 . . 71 Melee 13321 | . . . . 1149 382 114 . . 2447 1278 196 716 2522 3524 924 69 . Ramming 157 | . . 3 . . . . . . . . . . . 154 . . . Kinetic 539 | 13 39 203 284 . . . . . . . . . . . . . . Thermal 739 | 33 94 123 489 . . . . . . . . . . . . . . Explosive 2344 | . . . . . 948 348 . . . . . . . 977 . . 71 Electromagnetic 907 | . 310 . 293 . 117 . . . . . . . 187 . . . . Impact 2804 | . . . . 1149 112 . . . . . . . 591 901 51 . . Slashing 7625 | . . . . . 270 114 . . 2447 1205 196 716 1931 547 199 . . Piercing 2892 | . . . . . . . . . . 73 . . . 2076 674 69 . Highest Corruption 22 | . . . . . . . . . 10 16 16 16 19 3 2 2 22 Average Corruption 5 | . . . . . . . . . 5 11 16 12 4 2 1 2 3 Corruption Purged 19 | . . . . . . . . . . . . 16 . 3 . . . Corruption Blocked . | . . . . . . . . . . . . . . . . . . Effects 112 | . . . . . . . . . 2 41 12 7 8 15 11 15 1 Message Errors 37 | . . . . . . . . . . 17 4 2 1 5 2 5 1 Matter Fused 31 | . . . . . . . . . . 12 3 2 1 4 5 4 . Heat Flow Errors 16 | . . . . . . . . . 2 5 1 1 2 1 1 3 . Energy Discharges 9 | . . . . . . . . . . 2 2 1 . 2 1 1 . Parts Rejected 2 | . . . . . . . . . . 1 . . 1 . . . . Parts Fused 3 | . . . . . . . . . . . 1 . 1 . 1 . . Data Loss (minor) 9 | . . . . . . . . . . 3 1 . 1 2 . 2 . Data Loss (major) 4 | . . . . . . . . . . 1 . . 1 1 1 . . Alerts 1 | . . . . . . . . . . . . 1 . . . . . Overload Shots 3 | . . . . . . . . . . . . . . . . . 3 Effects 1 | . . . . . . . . . . . . . . . . . 1 Energy Bleed 1 | . . . . . . . . . . . . . . . . . 1 Overflow Damage 1826 | . . . 21 342 126 141 . . 91 173 . 243 167 488 34 . . Projectiles 39 | . . . 21 . . . . . . . . . . 18 . . . Explosions 211 | . . . . . 27 141 . . . . . . 20 23 . . . Melee 1576 | . . . . 342 99 . . . 91 173 . 243 147 447 34 . . Knockbacks 7 | . . . . . . . . . . . . . 1 6 . . . Impact 6 | . . . . . . . . . . . . . 1 5 . . . Kinetic . | . . . . . . . . . . . . . . . . . . Secondary 1 | . . . . . . . . . . . . . . 1 . . . Self-Inflicted Damage 352 | . . . 31 . 120 54 . . . . . . 94 . . . 53 Shots 8 | . . . 1 . 4 1 . . . . . . 1 . . . 1 Rammed 1 | . . 1 . . . . . . . . . . . . . . . Targets Rammed 6 | . . 1 . . . . . . . . . . . 5 . . . Kicked 5 | . . . . . . . . . . . . . . 5 . . . Crushed . | . . . . . . . . . . . . . . . . . . Highest Temperature 356 | . 208 54 261 25 14 . . . 141 249 103 143 243 267 210 271 356 Average Temperature 82 | . 64 22 98 10 9 . . . 62 110 53 77 63 144 72 101 156 Received Heat Transfer 2143 | . 159 90 279 168 117 9 . . 249 307 . 18 330 249 153 . 15 Siege Activations . | . . . . . . . . . . . . . . . . . . Martial Activations . | . . . . . . . . . . . . . . . . . . Shielding Activations . | . . . . . . . . . . . . . . . . . . Robots Disrupted . | . . . . . . . . . . . . . . . . . . Combat Hostiles . | . . . . . . . . . . . . . . . . . . Robots Corrupted 12 | . . . 2 2 . . . . . . . . 2 5 1 . . Combat Hostiles 10 | . . . 2 2 . . . . . . . . 2 3 1 . . Parts Fried 24 | . 4 . 2 2 . . . . . . . . 3 10 3 . . Impact Corruptions 32 | . . . . 10 1 . . . . . . . 7 12 2 . . Robots Melted . | . . . . . . . . . . . . . . . . . . Combat Hostiles . | . . . . . . . . . . . . . . . . . . Parts Melted 2 | . . 1 1 . . . . . . . . . . . . . . Heat Transferred 1374 | 75 200 420 679 . . . . . . . . . . . . . . Parts Sabotaged 1 | . . . . . . . . . 1 . . . . . . . . Parts Stolen 1 | . . . . . . 1 . . . . . . . . . . . Parts Stripped . | . . . . . . . . . . . . . . . . . . Power Chain Reactions 2 | . 1 . 1 . . . . . . . . . . . . . . Alert | -11 -10 -9 -8 -7 -7 -7 -7 -6 -6 -6 -6 -6 -6 -5 -5 -5 -5 ------- Run | Yrd Mat Mat Mat Fac Low Low Zio Pro Fac Ext Cet Arc Hub Fac Upp Upp War Maximum Alert Level 2 | . . . . . . . . . 1 1 . . 1 2 . . . Low Security (%) 82 | 100 100 100 100 100 . . . . 95 90 100 100 96 45 . . . Level 1 6 | . . . . . . . . . 4 9 . . 3 17 . . . Level 2 10 | . . . . . . . . . . . . . . 36 . . . Level 3 . | . . . . . . . . . . . . . . . . . . Level 4 . | . . . . . . . . . . . . . . . . . . Level 5 . | . . . . . . . . . . . . . . . . . . High Security . | . . . . . . . . . . . . . . . . . . Max Security . | . . . . . . . . . . . . . . . . . . Peak Influence 553 | 10 80 72 167 68 . . . . 211 230 199 176 213 553 . . . Initial 88 | . . 26 12 68 . . . . . 58 88 31 26 57 . . . Average 126 | 1 32 38 36 11 . . . . 106 96 134 129 111 263 . . . Influence Increases 5240 | 15 222 180 303 205 325 135 . 48 569 718 151 235 772 1147 210 5 . Destroy 0b10 Robot/C 3060 | . 160 120 160 80 280 80 . 40 360 440 80 80 340 700 140 . . Destroy 0b10 Robot/NC 150 | 15 . 5 . 5 5 . . . 5 25 5 30 10 40 . 5 . Destroy Leader 580 | . 40 42 40 42 40 10 . . 92 40 . . 102 122 10 . . Allied During Kill 392 | . . . . . . . . 8 . 110 51 110 113 . . . . Successful Hack 82 | . . 9 . 59 . . . . . . . . . 14 . . . Disable Machine 225 | . 15 . 15 15 . . . . . 15 . 15 90 60 . . . Destroy Structure 301 | . 7 4 13 4 . . . . 7 13 15 . 102 136 . . . Partial Spotted 30 | . . . . . . . . . . . . . 15 15 . . . Lose Combat Pursuer 420 | . . . 75 . . 45 . . 105 75 . . . 60 60 . . Influence Decreases 5240 | 15 160 212 182 338 231 247 . 48 448 681 230 238 730 729 721 30 . Entered New Map 664 | . . 36 18 83 8 22 . . . 63 70 48 50 61 199 6 . Time Decay 3695 | 15 140 166 164 237 223 225 . 8 388 425 140 150 440 468 482 24 . Lost Part 351 | . 20 10 . 18 . . . . 60 33 . . 140 40 30 . . Lost Ally 380 | . . . . . . . . 40 . 160 20 40 100 10 10 . . Purge Threat 150 | . . . . . . . . . . . . . . 150 . . . Squads Dispatched 26 | . 1 . 2 5 . . . . 4 1 . . 6 7 . . . Investigation 3 | . . . . 2 . . . . . . . . . 1 . . . Extermination 12 | . . . . 3 . . . . 3 . . . 2 4 . . . Reinforcement 8 | . 1 . 2 . . . . . 1 1 . . 2 1 . . . Assault 1 | . . . . . . . . . . . . . . 1 . . . Garrison 2 | . . . . . . . . . . . . . 2 . . . . Intercept . | . . . . . . . . . . . . . . . . . . Searches Triggered . | . . . . . . . . . . . . . . . . . . Construction Impeded . | . . . . . . . . . . . . . . . . . . Haulers Reinforced 1 | . . . . . . . . . . . . . 1 . . . . Active Scanning Responses . | . . . . . . . . . . . . . . . . . . Cargo Convoy Interrupts 1 | . . . . . . . . . 1 . . . . . . . . Stealth | -11 -10 -9 -8 -7 -7 -7 -7 -6 -6 -6 -6 -6 -6 -5 -5 -5 -5 --------- Run | Yrd Mat Mat Mat Fac Low Low Zio Pro Fac Ext Cet Arc Hub Fac Upp Upp War Distress Signals 10 | . . 1 2 1 . . . . 1 3 1 . 1 . . . . Communications Jammed 10 | . . . . . . . . . . . . . . 10 . . . Distress Signals 9 | . . . . . . . . . . . . . . 9 . . . Times Spotted 223 | . 9 8 17 9 14 9 . . 37 23 4 3 24 52 10 . 4 Peak Tracking Total 12 | . 3 3 4 4 4 5 . . 12 5 5 1 4 8 5 . 4 Tactical Retreats 18 | . . . 5 . . 3 . . 3 4 . . . 2 1 . . Traps | -11 -10 -9 -8 -7 -7 -7 -7 -6 -6 -6 -6 -6 -6 -5 -5 -5 -5 ------- Run | Yrd Mat Mat Mat Fac Low Low Zio Pro Fac Ext Cet Arc Hub Fac Upp Upp War Traps Triggered 6 | . . . . . . . . . . 4 . . 2 . . . . Indirectly . | . . . . . . . . . . . . . . . . . . Trap Hack Attempts . | . . . . . . . . . . . . . . . . . . Triggered . | . . . . . . . . . . . . . . . . . . Disarmed . | . . . . . . . . . . . . . . . . . . Reprogrammed . | . . . . . . . . . . . . . . . . . . Reused 1 | . . . . . . . . . . . . . . . 1 . . Traps Extracted . | . . . . . . . . . . . . . . . . . . Installed 3 | . . . . . . . . . . . . . . . 1 2 . Triggered 1 | . . . . . . . . . . . . . . . 1 . . Most Traps Carried 6 | . . . . . 5 5 5 5 5 5 5 5 5 5 5 6 6 Machines | -11 -10 -9 -8 -7 -7 -7 -7 -6 -6 -6 -6 -6 -6 -5 -5 -5 -5 ---------- Run | Yrd Mat Mat Mat Fac Low Low Zio Pro Fac Ext Cet Arc Hub Fac Upp Upp War Machines Disabled 18 | . 1 . 1 1 . . . . . 1 . 1 6 4 . . 3 Max in Single Turn 6 | . 1 . 1 1 . . . . . . . . 6 2 . . 2 Garrison Access 1 | . . . . . . . . . . . . . . 1 . . . Network Hub 2 | . . . . . . . . . . . . . 2 . . . . Machines Repaired . | . . . . . . . . . . . . . . . . . . Machines Dismantled . | . . . . . . . . . . . . . . . . . . Machines Sabotaged . | . . . . . . . . . . . . . . . . . . Overloaded Fab Kills . | . . . . . . . . . . . . . . . . . . Hacking | -11 -10 -9 -8 -7 -7 -7 -7 -6 -6 -6 -6 -6 -6 -5 -5 -5 -5 --------- Run | Yrd Mat Mat Mat Fac Low Low Zio Pro Fac Ext Cet Arc Hub Fac Upp Upp War Machines Accessed 22 | . . 2 2 5 1 . . . 1 . . . 1 7 . 2 1 Terminals 8 | . . 2 2 4 . . . . . . . . . . . . . Fabricators 3 | . . . . . . . . . 1 . . . . 2 . . . Repair Stations 3 | . . . . 1 . . . . . . . . . 2 . . . Recycling Units . | . . . . . . . . . . . . . . . . . . Scanalyzers 1 | . . . . . . . . . . . . . . 1 . . . Garrison Access 3 | . . . . . . . . . . . . . 1 2 . . . Total Hacks 73 | . . 7 2 16 1 . . . 2 . . . 1 35 . 8 1 Successful 28 | . . 2 . 7 1 . . . . . . . . 9 . 8 1 Failed 45 | . . 5 2 9 . . . . 2 . . . 1 26 . . . Catastrophic 6 | . . . 1 . . . . . 1 . . . 1 3 . . . Database Lockouts . | . . . . . . . . . . . . . . . . . . Manual 9 | . . . 1 7 . . . . . . 1 . . . . . . Terminals 20 | . . 7 2 11 . . . . . . . . . . . . . Fabricators 16 | . . . . . . . . . 2 . . . . 14 . . . Repair Stations 11 | . . . . 5 . . . . . . . . . 6 . . . Recycling Units . | . . . . . . . . . . . . . . . . . . Scanalyzers 9 | . . . . . . . . . . . . . . 9 . . . Garrison Access 7 | . . . . . . . . . . . . . 1 6 . . . Terminal Hacks 14 | . . 2 . 2 1 . . . . . . . . . . 8 1 Record 7 | . . . . . . . . . . . . . . . . 7 . Open Door 3 | . . . . . 1 . . . . . . . . . . 1 1 Branch Access Points 1 | . . . . 1 . . . . . . . . . . . . . Locate Traps 1 | . . 1 . . . . . . . . . . . . . . . Registered Components 1 | . . . . 1 . . . . . . . . . . . . . Zone Layout 1 | . . 1 . . . . . . . . . . . . . . . Fabricator Hacks 4 | . . . . . . . . . . . . . . 4 . . . Network Status 1 | . . . . . . . . . . . . . . 1 . . . Load Schematic 1 | . . . . . . . . . . . . . . 1 . . . Build 2 | . . . . . . . . . . . . . . 2 . . . Repair Station Hacks 4 | . . . . 2 . . . . . . . . . 2 . . . Scan Component 3 | . . . . 2 . . . . . . . . . 1 . . . Repair 1 | . . . . . . . . . . . . . . 1 . . . Recycling Unit Hacks . | . . . . . . . . . . . . . . . . . . Scanalyzer 2 | . . . . . . . . . . . . . . 2 . . . Insert Component 1 | . . . . . . . . . . . . . . 1 . . . Analyze 1 | . . . . . . . . . . . . . . 1 . . . Garrison Access Hacks 1 | . . . . . . . . . . . . . . 1 . . . Seal Access 1 | . . . . . . . . . . . . . . 1 . . . Unauthorized Hacks 3 | . . . . 3 . . . . . . . . . . . . . Terminals 3 | . . . . 3 . . . . . . . . . . . . . Botnet 3 | . . . . 3 . . . . . . . . . . . . . Fabricators . | . . . . . . . . . . . . . . . . . . Repair Stations . | . . . . . . . . . . . . . . . . . . Recycling Units . | . . . . . . . . . . . . . . . . . . Scanalyzers . | . . . . . . . . . . . . . . . . . . Garrison Access . | . . . . . . . . . . . . . . . . . . Data Cores Recovered 2 | . . . . . . . . . . 2 . . . . . . . Used . | . . . . . . . . . . . . . . . . . . Hacking Detections 16 | . . 2 2 5 . . . . 1 . . . 1 5 . . . Full Trace Events 3 | . . . . 2 . . . . . . . . . 1 . . . Feedback Events . | . . . . . . . . . . . . . . . . . . Feedback Blocked . | . . . . . . . . . . . . . . . . . . Robot Schematics Acquired 3 | . . . . . . . 3 . . . . . . . . . . Robots Built . | . . . . . . . . . . . . . . . . . . Authchips . | . . . . . . . . . . . . . . . . . . Time . | . . . . . . . . . . . . . . . . . . Total Robot Build Rating . | . . . . . . . . . . . . . . . . . . Part Schematics Acquired 15 | . . . . . . . 15 . . . . . . . . . . Parts Built 4 | . . . . . . . . . . . . . . 4 . . . Authchips . | . . . . . . . . . . . . . . . . . . Time 181 | . . . . . . . . . . . . . . 181 . . . Total Part Build Rating 26 | . . . . . . . . . . . . . . 26 . . . Parts Repaired 1 | . . . . . . . . . . . . . . 1 . . . Time 108 | . . . . . . . . . . . . . . 108 . . . Parts Recycled . | . . . . . . . . . . . . . . . . . . Recycled Matter . | . . . . . . . . . . . . . . . . . . Retrieved Matter . | . . . . . . . . . . . . . . . . . . Retrieved Components . | . . . . . . . . . . . . . . . . . . Parts Scanalyzed 1 | . . . . . . . . . . . . . . 1 . . . Part Schematics Acquired . | . . . . . . . . . . . . . . . . . . Parts Damaged . | . . . . . . . . . . . . . . . . . . Bothacking | -11 -10 -9 -8 -7 -7 -7 -7 -6 -6 -6 -6 -6 -6 -5 -5 -5 -5 ------------ Run | Yrd Mat Mat Mat Fac Low Low Zio Pro Fac Ext Cet Arc Hub Fac Upp Upp War Used RIF Installer . | . . . . . . . . . . . . . . . . . . Robots Hacked . | . . . . . . . . . . . . . . . . . . Non-combat . | . . . . . . . . . . . . . . . . . . Combat . | . . . . . . . . . . . . . . . . . . Robot Hacks Applied . | . . . . . . . . . . . . . . . . . . Relay Couplers Released . | . . . . . . . . . . . . . . . . . . Fabnet Peak Effective % . | . . . . . . . . . . . . . . . . . . Robots Rewired 14 | . . . . . . . . . . 9 . . . . . . 5 Allies Hacked . | . . . . . . . . . . . . . . . . . . Hacks Repelled . | . . . . . . . . . . . . . . . . . . Allies | -11 -10 -9 -8 -7 -7 -7 -7 -6 -6 -6 -6 -6 -6 -5 -5 -5 -5 -------- Run | Yrd Mat Mat Mat Fac Low Low Zio Pro Fac Ext Cet Arc Hub Fac Upp Upp War Total Allies 35 | . . . . . . . 5 . . 16 5 . . 1 . 3 5 Largest Group 10 | . . . . . . . 5 5 1 7 10 10 7 . . 3 5 Highest-Rated Group 640 | . . . . . . . 126 126 25 332 640 640 459 . . 93 275 Highest-Rated Ally 159 | . . . . . . . 39 39 25 159 152 96 96 . . 31 68 Total Orders 42 | . . . . . . . . . 2 13 1 2 6 6 12 . . STAY 2 | . . . . . . . . . . 1 . . 1 . . . . FOLLOW 3 | . . . . . . . . . . 2 . 1 . . . . . GUARD 1 | . . . . . . . . . . . . 1 . . . . . EXPLORE 9 | . . . . . . . . . . . . . . 2 7 . . RETURN 27 | . . . . . . . . . 2 10 1 . 5 4 5 . . Ally Attacks 232 | . . . . . . . . 14 1 112 25 36 37 . . . 7 Total Damage 6169 | . . . . . . . . 112 34 2489 755 1149 1055 . . . 575 Kills 37 | . . . . . . . . 2 . 18 5 4 7 . . . 1 Allies Corrupted 3 | . . . . . . . . . . 1 . . 2 . . . . Allies Melted 1 | . . . . . . . . . 1 . . . . . . . . Intel | -11 -10 -9 -8 -7 -7 -7 -7 -6 -6 -6 -6 -6 -6 -5 -5 -5 -5 ------- Run | Yrd Mat Mat Mat Fac Low Low Zio Pro Fac Ext Cet Arc Hub Fac Upp Upp War Active Infowar (turns) 14593 | 15 149 354 258 1182 1400 1279 2275 676 732 377 . . 1018 2512 1057 874 435 Seismic 14182 | 15 149 354 258 1182 1400 1279 2275 676 732 377 . . 848 2271 1057 874 435 Jamming 4105 | . . . . . . . . . . . . . 586 2462 . 624 433 Robot Analysis Total . | . . . . . . . . . . . . . . . . . . Derelict Logs Recovered 6 | . . . . . . 1 1 . . . . . . . 2 2 . Drone Launches 34 | . . . . . . . . . 2 10 1 . 5 7 9 . . Drone Recoveries 32 | . . . . . . . . . 2 10 1 . 5 7 7 . . Exploration | -11 -10 -9 -8 -7 -7 -7 -7 -6 -6 -6 -6 -6 -6 -5 -5 -5 -5 ------------- Run | Yrd Mat Mat Mat Fac Low Low Zio Pro Fac Ext Cet Arc Hub Fac Upp Upp War Turns Passed 17594 | 92 359 389 576 1314 1489 1317 2282 676 1084 1182 294 300 1084 2602 1245 874 435 Spaces Moved 9817 | 40 150 168 252 652 811 674 1315 382 537 616 133 90 596 1600 817 695 289 Core 2 | 2 . . . . . . . . . . . . . . . . . Treads 4651 | 38 150 158 229 652 811 674 1315 382 242 . . . . . . . . Legs 5131 | . . . . . . . . . 295 616 133 90 596 1600 817 695 289 Wheels 33 | . . 10 23 . . . . . . . . . . . . . . Hover . | . . . . . . . . . . . . . . . . . . Flight . | . . . . . . . . . . . . . . . . . . Fastest Speed 50 | 50 160 110 125 170 170 170 170 170 122 120 120 120 120 115 113 115 115 Average Speed 142 | 154 160 157 165 170 170 170 170 170 148 122 120 120 121 118 114 115 118 Slowest Speed 246 | 160 160 160 170 170 170 170 170 170 246 192 120 120 196 125 115 115 120 Overloaded Moves . | . . . . . . . . . . . . . . . . . . Propulsion Burnouts . | . . . . . . . . . . . . . . . . . . Robots Hopped . | . . . . . . . . . . . . . . . . . . Potential Cave-ins 4 | . . . . . . . . . . . . . . . 4 . . Cave-ins Triggered . | . . . . . . . . . . . . . . . . . . Exploration Rate (%) 50 | 4 27 21 31 17 90 74 85 48 11 71 54 70 50 39 86 72 59 Regions Visited 17 Branch Regions 11 Pre-discovered Areas 3 | . . . . . . 1 1 . . . . . . . . 1 . Known Exits Taken 6 | . . . . 1 . . . 1 1 1 . . 1 1 . . . Unknown Exits Taken 11 | 1 1 1 1 . 1 1 1 . . . 1 1 . . 1 1 . Scrap Searched 11 | . . . . . 2 1 4 . . . . . . . 3 1 . Spaces Dug 79 | . 2 1 . 4 2 . . . 7 5 . . 10 23 22 3 . Terrain Destroyed 429 | . 6 2 14 4 84 32 . . 7 5 . . 172 70 22 3 8 Melee 54 | . . . . 4 2 . . . 7 5 . . 8 23 4 1 . Projectile 33 | . 2 2 7 . . . . . . . . . 2 . 18 2 . AOE 342 | . 4 . 7 . 82 32 . . . . . . 162 47 . . 8 Terrain Rammed . | . . . . . . . . . . . . . . . . . . Walls Destroyed . | . . . . . . . . . . . . . . . . . . Machines Disabled . | . . . . . . . . . . . . . . . . . . Actions | -11 -10 -9 -8 -7 -7 -7 -7 -6 -6 -6 -6 -6 -6 -5 -5 -5 -5 --------- Run | Yrd Mat Mat Mat Fac Low Low Zio Pro Fac Ext Cet Arc Hub Fac Upp Upp War Total 12649 | 57 207 255 355 812 878 836 1360 409 725 992 263 275 857 2172 1065 759 372 Wait 1470 | . 11 31 20 41 11 145 3 28 73 160 115 160 118 335 165 46 8 Move 9800 | 39 149 167 251 651 810 673 1314 381 536 615 132 89 595 1599 816 694 289 Hop . | . . . . . . . . . . . . . . . . . . Pick Up 149 | 6 5 14 17 27 2 2 12 . 9 15 2 3 15 17 3 . . Fast Attach 61 | 7 . 2 1 5 . . 3 . 6 9 2 7 8 9 1 1 . Attach 57 | . 2 3 2 5 . 2 3 . 6 7 . . 12 12 3 . . Detach 31 | . . 2 1 5 . . 2 . 5 . . 4 3 9 . . . Swap 254 | . 10 8 17 15 20 6 2 . 21 28 6 . 32 56 17 7 9 Drop 138 | . 2 9 14 28 2 1 16 . 9 18 4 6 7 21 . 1 . Fire 164 | 5 28 18 32 3 19 4 . . . . . . 6 6 34 6 3 Melee 343 | . . . . 32 14 3 5 . 60 30 2 6 61 103 25 2 . Ram . | . . . . . . . . . . . . . . . . . . Kick 5 | . . . . . . . . . . . . . . 5 . . . Crush 1 | . . 1 . . . . . . . . . . . . . . . Escape Stasis . | . . . . . . . . . . . . . . . . . . Rewire 173 | . . . . . . . . . . 110 . . . . . . 63 Trap 3 | . . . . . . . . . . . . . . . 1 2 . Miscellaneous . | . . . . . . . . . . . . . . . . . . Route ------- -11/Scrapyard -10/Materials -9/Materials -8/Materials -7/Factory (discovered 3 exits: *Fac / *Low x2) -7/Lower Caves -7/Lower Caves -7/Zion -6/Proximity Caves -6/Factory (discovered 2 exits: Fac / *Ext) -6/Extension (discovered 3 exits: *Fac x2 / *Cet) -6/Cetus -6/Archives -6/Hub_04(d) (discovered 4 exits: *Fac x4) -5/Factory (discovered 6 exits: *Fac x4 / *Upp x2) -5/Upper Caves -5/Upper Caves (discovered 2 exits: *Fac / *War) -5/Warlord (discovered 1 exit: [*Pro]) History --------- Turn | Location | Event 6 | -11/Scrapyard | Discovered new exit (range 16) 93 | -11/Scrapyard | Entered Materials 318 | -10/Materials | Build established: Mutant 441 | -10/Materials | Discovered new exit (range 3) 452 | -10/Materials | Entered another Materials area 452 | -9/Materials | Evolved 2 slots: Propulsion x1, Utility x1 801 | -9/Materials | Discovered new exit (range 3) 841 | -9/Materials | Entered another Materials area 841 | -8/Materials | Evolved 2 slots: Propulsion x1, Utility x1 1316 | -8/Materials | Discovered new exit (range 16) 1417 | -8/Materials | Entered Factory 1417 | -7/Factory | Evolved 2 slots: Utility x2 1548 | -7/Factory | Lost 3 parts (1p1u1w) 1998 | -7/Factory | Build established: Gladiator 2025 | -7/Factory | Discovered new exit (range 5) 2052 | -7/Factory | Identified exit to Factory 2431 | -7/Factory | Identified exit to Lower Caves 2731 | -7/Factory | Entered Lower Caves 3074 | -7/Lower Caves | Encountered a Warlord checkpoint 4207 | -7/Lower Caves | Discovered new exit (range 9) 4220 | -7/Lower Caves | Entered another Lower Caves area 4523 | -7/Lower Caves | Build established: Mutant 4837 | -7/Lower Caves | Spotted B-75 Beast 5309 | -7/Lower Caves | Discovered new exit (range 5) 5537 | -7/Lower Caves | Entered Zion 5588 | -7/Zion | Discovered new exit (range 14) 5636 | -7/Zion | Build established: Gladiator 5659 | -7/Zion | Found Prototype Device 5659 | -7/Zion | Identified Bomb Factory No. 2 6006 | -7/Zion | Learned location of Data Miner (-6) 6370 | -7/Zion | Learned location of 2 exits from Factory 6673 | -7/Zion | Found CR-A16's Pointy Stick 6757 | -7/Zion | Given the Hacking Drone Bay 6758 | -7/Zion | Found Prototype Device 7075 | -7/Zion | Gained Derelict followers 7819 | -7/Zion | Entered Proximity Caves 7819 | -6/Proximity Caves | Accompanied by 5 allies 8367 | -6/Proximity Caves | Discovered exit to Factory (range 8) 8495 | -6/Proximity Caves | Entered Factory 8495 | -6/Factory | Accompanied by 1 ally 8495 | -6/Factory | Evolved 2 slots: Utility x2 8496 | -6/Factory | Identified exit to Extension 8496 | -6/Factory | Identified exit to Factory 8502 | -6/Factory | Lost 4 allies 8687 | -6/Factory | Identified Hacking Drone Bay 9064 | -6/Factory | Lost 3 parts (2n1u) 9298 | -6/Factory | Build established: Derelict-Gladiator 9495 | -6/Factory | Cargo convoy interrupted 9578 | -6/Factory | System corruption reached 10% 9579 | -6/Factory | Entered Extension 9603 | -6/Extension | Identified exit to Cetus 9618 | -6/Extension | Build established: Gladiator 9619 | -6/Extension | Rescued a captive Derelict 9784 | -6/Extension | Rescued a captive Derelict 9790 | -6/Extension | Rescued a captive Derelict 9834 | -6/Extension | Rescued a captive Derelict 9975 | -6/Extension | Build established: Scavenger-Gladiator 10055 | -6/Extension | Spotted B-75 Beast 10074 | -6/Extension | Spotted B-75 Beast 10092 | -6/Extension | Revealed the true nature of CR-A16's Pointy Stick 10092 | -6/Extension | Destroyed B-75 Beast 10096 | -6/Extension | Destroyed B-75 Beast 10117 | -6/Extension | Lost 3 allies 10229 | -6/Extension | Rescued A7 10272 | -6/Extension | Rescued a captive Derelict 10272 | -6/Extension | Rescued a captive Derelict 10761 | -6/Extension | Entered Cetus 10761 | -6/Cetus | Accompanied by 7 allies (A7) 10766 | -6/Cetus | Acquired a Cetus Manufacturing Module code from A7 10783 | -6/Cetus | Spotted Cetus Guard 10783 | -6/Cetus | Spotted Cetus Guard 10792 | -6/Cetus | Allies destroyed Cetus Guard 10793 | -6/Cetus | Spotted Cetus Guard 10794 | -6/Cetus | Allies destroyed Cetus Guard 10797 | -6/Cetus | Allies destroyed Cetus Guard 10798 | -6/Cetus | Spotted Cetus Guard 10801 | -6/Cetus | Allies destroyed Cetus Guard 10867 | -6/Cetus | Started Cetus Manufacturing Module 10881 | -6/Cetus | Murdered A7 10885 | -6/Cetus | Extracted ID and sensor layout for unrecognized location from A7's data core 10892 | -6/Cetus | Manufactured an Enhanced Grunt 10917 | -6/Cetus | Manufactured an Enhanced Grunt 10942 | -6/Cetus | Manufactured an Enhanced Grunt 10967 | -6/Cetus | Manufactured an Enhanced Grunt 10992 | -6/Cetus | Manufactured an Enhanced Grunt 11013 | -6/Cetus | Discovered new exit (range 15) 11055 | -6/Cetus | Entered Archives 11055 | -6/Archives | Accompanied by 10 allies 11278 | -6/Archives | Discovered new exit (range 15) 11355 | -6/Archives | Entered Hub_04(d) 11355 | -6/Hub_04(d) | Accompanied by 8 allies 11422 | -6/Hub_04(d) | Found Prototype Device 11422 | -6/Hub_04(d) | Identified Exp. Thermal Shield 11443 | -6/Hub_04(d) | Discovered exit to Factory (range 11) 11458 | -6/Hub_04(d) | Discovered exit to Factory (range 16) 11523 | -6/Hub_04(d) | Lost 4 allies 12054 | -6/Hub_04(d) | Network Hub disabled 12157 | -6/Hub_04(d) | Network Hub disabled 12266 | -6/Hub_04(d) | Spotted Lightning 12269 | -6/Hub_04(d) | Spotted Lightning 12269 | -6/Hub_04(d) | Spotted Lightning 12287 | -6/Hub_04(d) | Destroyed Lightning 12292 | -6/Hub_04(d) | Found Prototype Device 12292 | -6/Hub_04(d) | Identified Exp. Phase Shifter 12310 | -6/Hub_04(d) | Garrison activated, responded to threat 12310 | -6/Hub_04(d) | Destroyed Lightning 12344 | -6/Hub_04(d) | Core integrity fell below 50% 12349 | -6/Hub_04(d) | Destroyed Lightning 12387 | -6/Hub_04(d) | Found Prototype Processor 12392 | -6/Hub_04(d) | Lost 12 parts (6n4u2w) 12393 | -6/Hub_04(d) | Found Prototype Processor 12396 | -6/Hub_04(d) | Found Exp. Phase Shifter 12403 | -6/Hub_04(d) | Found Prototype Energy Cannon 12439 | -6/Hub_04(d) | Entered Factory 12439 | -5/Factory | Evolved 2 slots: Utility x2 12439 | -5/Factory | Identified Exp. Targeting Computer (x2) 12620 | -5/Factory | Build established: Scavenger-Mutant 12946 | -5/Factory | Fabricated Lgt. Quantum Reactor (x2) 13050 | -5/Factory | Build established: Scavenger-Gladiator 13377 | -5/Factory | Discovered new exit (range 16) 13578 | -5/Factory | Discovered new exit (range 7) 13679 | -5/Factory | Destroyed 7 combat bots 13752 | -5/Factory | Spotted B-75 Beast 13870 | -5/Factory | Fabricated Microactuators (x2) 13960 | -5/Factory | Destroyed 7 combat bots 14209 | -5/Factory | Discovered new exit (range 6) 14239 | -5/Factory | First assault squad dispatched 14390 | -5/Factory | Repaired Centrium Medium Armor Plating 14521 | -5/Factory | Identified exit to Upper Caves 14524 | -5/Factory | Identified exit to Factory 15041 | -5/Factory | Entered Upper Caves 15157 | -5/Upper Caves | Attracted the attention of an 0b10 checkpoint 15820 | -5/Upper Caves | Learned 4 Factory zone layouts 15965 | -5/Upper Caves | Learned 8 Factory zone layouts 16071 | -5/Upper Caves | Discovered new exit (range 6) 16286 | -5/Upper Caves | Entered another Upper Caves area 16338 | -5/Upper Caves | Discovered exit to Factory (range 12) 16876 | -5/Upper Caves | Learned 12 Factory zone layouts 16921 | -5/Upper Caves | Entered an active Warlord outpost 16927 | -5/Upper Caves | A Commander dispatched an escort 16934 | -5/Upper Caves | Learned Extension stockpile data 16934 | -5/Upper Caves | Learned Research security intel 16934 | -5/Upper Caves | Learned Armory terminal intel 17097 | -5/Upper Caves | Discovered new exit (range 12) 17160 | -5/Upper Caves | Entered Warlord 17160 | -5/Warlord | Accompanied by 3 allies 17161 | -5/Warlord | Commander's escort returned to base 17161 | -5/Warlord | Commander's escort returned to base 17215 | -5/Warlord | Discovered new exit (range 15) 17247 | -5/Warlord | System corruption reached 10% 17253 | -5/Warlord | System corruption cleaned by Quarantine Array 17578 | -5/Warlord | Attacked by Warlord forces 17585 | -5/Warlord | Found Prototype Processor 17585 | -5/Warlord | Identified Exp. Armor Integrity Analyzer 17595 | -5/Warlord | Self-destructed Last Messages --------------- There's a false wall somewhere to the north of it. Or was it south... Anyway, it's somewhere over that way towards the east, giving access to a hidden tunnel, and of course the doors can only be opened from the inside. 17576_ Connecting with WAR.Sys... 17577_ WAR.Sys disabled. 17577_ Overload: Energy bleed (-58). 17577_ Sealed Heavy Doors breached. 17578_ ANNOUNCEMENT: Internal threat detected, destroy unregistered bots on sight. 17579_ Slug penetrates LS-LMR(M). 17580_ Slug penetrates RF-78U(g). 17581_ Beamer 6a destroyed. 17581_ RF-78U(g) destroyed. 17582_ Sentinel 6b destroyed. 17582_ Slayer 6a destroyed. 17585_ Acquired Prototype Processor. 17585_ Identified Exp. Armor Integrity Analyzer. Map ----- +----------------------------------------------------+ | ?????????????????????????????????????? | | ?????????????????????????????????????? | | ?????????????????????????????????????? | | ?????????????????????????????????????? | | ?????????????????????????????????????? | | ?????????????????????????????????????? | | ???????????????????????????????????##? | | ???????????????????????????????????# # | | ??????????????????????????????????? | | ???????????????????????????????????# | | ???????????????????????????????????+ | | ???????????????????????????????????# | | ????????????#########+#????????????# | | ????????????# #????????????# | | ?????????#??# #????????????# | | ?????????# ?# #????????????# | | ?????##### ?# ??????????????# | | ?????? # ?? ????????###?????# | | ???????? / ####+########### ####### | | ?????????# ! %![%! | | ?????????# %% [[=[ | | ?????????## !*% *#####/############+ | | ??????????# #??????? | | ??????????## ## #??????? | | ???????????##""M### #??????# | | ???????????#!@ *## """ """ #??????# | | ???????????#! %!## """ """ #??????# | | ???????????#! ## """ """ #??????# | | ???????????# =## #??????# | | ???????????#=====##? #??????# | | ???????????#######??#########??????# | | ???????????????????????????????????### | | ?????????????????????????????????????? | | ?????????????????????????????????????? | | ?????????????????????????????????????? | | ?????????????????????????????????????? | | ?????????????????????????????????????? | | ?????????????????????????????????????? | | ?????????????????????????????????????? | | ?????????????????????????????????????? | | ?????????????????????????????????????? | | ?????????????????????????????????????? | | ?????????????????????????????????????? | | ?????????????????????????????????????? | | ?????????????????????????????????????? | | ?????????????????????????????????????? | | ?????????????????????????????????????? | | ?????????????????????????????????????? | | ?????????????????????????????????????? | | | +----------------------------------------------------+ Best States ------------- Heat Dissipation 66 Coolant Potential 50 Energy Generation 25 Energy Capacity 350 Matter Stores 300 Matter Capacity 300 Sight Range 16 Terrain Scan Density 10 Jamming Range 14 EM Shielding 2 Armor Coverage 700 Resistance: TH 30 Resistance: EX 50 Resistance: EM 20 Propulsion Shielding 66 Weapon Shielding 33 Point Defense Rating 80 Melee Speed Boost 40 Evasion (%) 65 Targeting Accuracy 12 Melee Accuracy 14 Core Analysis 6 Armor Integrity Analysis 50 Recoil Reduction 4 Trap Extractor Capacity 6 Item Schematics ----------------- Thermic Laser | -7/Zion | Archive Med. Treads | -7/Zion | Archive Microactuators | -7/Zion | Archive Hyp. Gauss Rifle | -7/Zion | Archive Adv. System Restoration Module | -7/Zion | Archive Gauss Rifle | -7/Zion | Archive Nuclear Pulse Thruster | -7/Zion | Archive Adv. Terrain Scan Processor | -7/Zion | Archive Imp. Target Analyzer | -7/Zion | Archive Imp. Carbon-fiber Leg | -7/Zion | Archive Hvy. Flak Cannon | -7/Zion | Archive Hvy. Ion Cannon | -7/Zion | Archive Adv. Signal Interpreter | -7/Zion | Archive Tesla Rifle | -7/Zion | Archive Lrn. Phase Cannon | -7/Zion | Archive Robot Schematics ------------------ B-48 Gladiator | -7/Zion | Archive Y-54 Guardian | -7/Zion | Archive R-06 Scavenger | -7/Zion | Archive Fabricated ------------ Lgt. Quantum Reactor | x2 | -5/Factory | Preloaded Microactuators | x2 | -5/Factory Repaired ---------- Centrium Medium Armor Plating | 28% | -5/Factory Alien Tech Used ----------------- None Achievements -------------- None Challenges ------------ None Game ------ Seed MomentumMappingPod Manual? 0 Play Time 04:15:18 Cumulative 312.7 hours Start 2025.07.27 @ 21:03:03 End 2025.07.28 @ 15:55:23 Sessions 22 Manual Loads 0 Difficulty Rogue Special Mode None Game No. 59 Rogue 59 Adventurer 0 Explorer 0 Win Type - Total 9 Types 4/0/3/1/0/0/0/1/0/0 Lore% 72 Gallery% 68 Achievement% 68 Wizard Run 0 Options --------- Layout 2 ASCII 0 Keyboard 1 Movement Vi Keybinds 1 Fullscreen 1 Font 24/Tamsyn Map View 50x44 Zoom Use 0% Tactical HUD 1 Map Filters NONE Filters NONE Steam 1 RUN: 23f25e84-a6f6-4668-8b10-d35cf40e087c